[Event "12th Arad Open 2019"]
[Site "Arad"]
[Date "2019.07.30"]
[Round "8.10"]
[White "Gilea, Lucian"]
[Black "Secheres, Adrian-Simion"]
[Result "0-1"]
[ECO "E70"]
[WhiteElo "2287"]
[BlackElo "2394"]
[Annotator "NA"]
[PlyCount "54"]
[EventDate "2019.07.24"]
[EventType "swiss"]
[EventCountry "ROU"]
[SourceTitle "playchess.com"]
[Source "ChessBase"]
[SourceQuality "1"]
[TimeControl "40/5400+30:900+30"]

1. d4 {[%emt 0:00:00]} Nf6 {[%emt 0:00:00]} 2. c4 {[%emt 0:00:00]} g6 {[%emt 0:00:14]} 3. Nc3 {[%emt 0:00:00]} Bg7 {[%emt 0:00:11]} 4. e4 {[%emt 0:00:00]} d6 {[%emt 0:00:07]} 5. Nge2 {[%emt 0:00:08]} O-O {[%emt 0:00:12]} 6. Ng3 {[%emt 0:00:06]} a6 {[%emt 0:00:12]} 7. Be2 {[%emt 0:01:16]} c5 {[%emt 0:00:08]} 8. d5 {[%emt 0:04:47]} b5 {[%emt 0:00:42]} 9. cxb5 {[%emt 0:00:28]} axb5 {[%emt 0:00:07]} 10. Bxb5 {[%emt 0:00:30]} Ba6 {[%emt 0:01:08]} 11. Bxa6 {[%emt 0:04:55]} Nxa6 {[%emt 0:00:07]} 12. O-O {[%emt 0:00:08]} Qa5 {[%emt 0:08:16]} 13. Qe2 {[%emt 0:11:59]} Nd7 {[%emt 0:02:06]} 14. Bd2 {[%emt 0:00:42]} Rfb8 {[%emt 0:02:35]} 15. Rfb1 {[%emt 0:00:39]} Nb4 {[%emt 0:05:35]} 16. Bg5 {[%emt 0:15:25]} Qa6 {[%emt 0:01:32]} 17. Qd1 {[%emt 0:07:57]} Nd3 {[%emt 0:05:08]} 18. Qc2 {[%emt 0:04:22]} Qc4 {[%emt 0:13:03]} 19. Bxe7 {[%emt 0:07:13]} Bd4 {[%emt 0:02:53]} 20. Nh1 {[%emt 0:16:36]} Ra6 {[%emt 0:10:48]} 21. Bg5 {[%emt 0:01:48]} Rab6 {[%emt 0:03:15]} 22. Qa4 {[%emt 0:03:31]} Qxc3 {[%emt 0:02:26]} 23. Qxd7 {[%emt 0:01:07]} Rxb2 {[%emt 0:00:48]} 24. Rxb2 {[%emt 0:00:12]} Qxb2 {[%emt 0:00:23]} 25. Rf1 {[%emt 0:00:07]} Nxf2 {[%emt 0:00:21]} 26. h4 {[%emt 0:03:26]} Ng4+ {[%emt 0:00:07]} 27. Nf2 {[%emt 0:00:04]} Qxf2+ {[%emt 0:00:10]} 0-1

[Event "12th Arad Open 2019"]
[Site "Arad"]
[Date "2019.07.30"]
[Round "8.11"]
[White "Lyell, Mark"]
[Black "Peptan, Corina-Isabela"]
[Result "1/2-1/2"]
[ECO "B24"]
[WhiteElo "2216"]
[BlackElo "2375"]
[Annotator "NA"]
[PlyCount "119"]
[EventDate "2019.07.24"]
[EventType "swiss"]
[EventCountry "ROU"]
[SourceTitle "playchess.com"]
[Source "ChessBase"]
[SourceQuality "1"]
[TimeControl "40/5400+30:900+30"]

1. e4 c5 2. Nc3 Nc6 3. Bb5 d6 4. Bxc6+ bxc6 5. d3 g6 6. f4 Bg7 7. Nf3 Qb6 8. h3 Nf6 9. O-O c4+ 10. d4 O-O 11. Kh2 Rd8 12. Qe1 d5 13. e5 Ne8 14. g4 Qb8 15. Na4 Nc7 16. Be3 Qb5 17. b3 cxb3 18. axb3 Na6 19. Rf2 Qb8 20. Qc3 Bd7 21. Nb2 Nc7 22. Nd3 f5 23. Nc5 Bc8 24. Rg1 a5 25. gxf5 Bxf5 26. Nh4 Rf8 27. Nxf5 Rxf5 28. Ra1 Qc8 29. Bd2 Ne6 30. Nxe6 Qxe6 31. Rxa5 Rxa5 32. Qxa5 Bh6 33. Qc3 Kg7 34. Qg3 Qc8 35. Qh4 Qe6 36. Bb4 Rf7 37. Kg2 Qd7 38. Qg4 Rf5 39. Qh4 Rf7 40. Bd2 Qf5 41. c3 Qe4+ 42. Kh2 e6 43. Qg4 Rf5 44. Qf3 Qc2 45. b4 Kg8 46. Qe2 Kg7 47. Kg2 Qa2 48. Be3 Qa3 49. Bd2 Qa2 50. b5 cxb5 51. Qxb5 Qa7 52. Qe8 Qa6 53. Be3 Rf8 54. Qe7+ Rf7 55. Qd6 Qd3 56. Bd2 Qe4+ 57. Kg3 Qd3+ 58. Kg2 Qe4+ 59. Kg3 Qd3+ 60. Kg2 1/2-1/2

[Event "12th Arad Open 2019"]
[Site "Arad"]
[Date "2019.07.30"]
[Round "8.12"]
[White "Bogdan, Dan"]
[Black "Gorodetzky, Matan"]
[Result "1-0"]
[WhiteElo "2370"]
[BlackElo "2290"]
[Annotator "NA"]
[PlyCount "73"]
[EventDate "2019.07.24"]
[EventType "swiss"]
[EventCountry "ROU"]
[SourceTitle "playchess.com"]
[Source "ChessBase"]
[SourceQuality "1"]
[TimeControl "40/5400+30:900+30"]

1. Nf3 {[%emt 0:00:48]} d5 {[%emt 0:00:00]} 2. d4 {[%emt 0:00:13]} e6 {[%emt 0:02:57]} 3. g3 {[%emt 0:01:42]} c5 {[%emt 0:00:46]} 4. Bg2 {[%emt 0:00:07]} cxd4 {[%emt 0:01:43]} 5. Nxd4 {[%emt 0:00:42]} Nf6 {[%emt 0:03:38]} 6. O-O {[%emt 0:00:56]} e5 {[%emt 0:01:05]} 7. Nb3 {[%emt 0:01:28]} Be6 {[%emt 0:00:42]} 8. c4 {[%emt 0:03:28]} Nc6 {[%emt 0:05:07]} 9. cxd5 {[%emt 0:02:33]} Nxd5 {[%emt 0:05:25]} 10. Nc3 {[%emt 0:07:10]} Nxc3 {[%emt 0:16:51]} 11. bxc3 {[%emt 0:01:54]} Qc7 {[%emt 0:05:56]} 12. Be3 {[%emt 0:04:33]} Rd8 {[%emt 0:02:54]} 13. Qc2 {[%emt 0:01:59]} Nb4 {[%emt 0:05:54]} 14. Qb1 {[%emt 0:06:35]} Nd5 {[%emt 0:00:45]} 15. Bd2 {[%emt 0:00:54]} Ba3 {[%emt 0:03:59]} 16. Qe4 {[%emt 0:07:34]} O-O {[%emt 0:00:38]} 17. Qa4 {[%emt 0:00:40]} Be7 {[%emt 0:04:05]} 18. c4 {[%emt 0:09:18]} Nb6 {[%emt 0:16:55]} 19. Qxa7 {[%emt 0:05:18]} Nxc4 {[%emt 0:01:02]} 20. Rfc1 {[%emt 0:01:09]} Rd7 {[%emt 0:00:31]} 21. Bc3 {[%emt 0:08:01]} f6 {[%emt 0:13:16]} 22. Qa4 {[%emt 0:09:58]} Rb8 {[%emt 0:00:57]} 23. Be1 {[%emt 0:13:56]} b5 {[%emt 0:00:43]} 24. Qa6 {[%emt 0:00:59]} Rd6 {[%emt 0:04:15]} 25. Qa5 {[%emt 0:00:11]} Nxa5 {[%emt 0:01:47]} 26. Rxc7 {[%emt 0:00:37]} Nxb3 {[%emt 0:00:09]} 27. axb3 {[%emt 0:00:13]} Bd8 {[%emt 0:00:08]} 28. Rca7 {[%emt 0:01:17]} Bxb3 {[%emt 0:01:10]} 29. Bb4 {[%emt 0:00:14]} Rd4 {[%emt 0:00:17]} 30. Bc5 {[%emt 0:03:31]} Ra4 {[%emt 0:00:24]} 31. Rb1 {[%emt 0:00:35]} Bb6 {[%emt 0:00:55]} 32. Bxb6 {[%emt 0:01:00]} Rxb6 {[%emt 0:00:01]} 33. Bd5+ {[%emt 0:00:17]} Kf8 {[%emt 0:00:29]} 34. Rf7+ {[%emt 0:00:08]} Ke8 {[%emt 0:00:28]} 35. Bxb3 {[%emt 0:00:02]} Rb4 {[%emt 0:00:05]} 36. Rxg7 {[%emt 0:00:41]} Rc6 {[%emt 0:00:13]} 37. Bf7+ {[%emt 0:00:29]} 1-0

[Event "12th Arad Open 2019"]
[Site "Arad"]
[Date "2019.07.30"]
[Round "8.13"]
[White "Barrish, Daniel"]
[Black "Nester, Ihor"]
[Result "1-0"]
[ECO "A80"]
[WhiteElo "2237"]
[BlackElo "2361"]
[Annotator "NA"]
[PlyCount "51"]
[EventDate "2019.07.24"]
[EventType "swiss"]
[EventCountry "ROU"]
[SourceTitle "playchess.com"]
[Source "ChessBase"]
[SourceQuality "1"]
[TimeControl "40/5400+30:900+30"]

1. d4 {[%emt 0:00:00]} f5 {[%emt 0:00:00]} 2. Bg5 {[%emt 0:00:00]} g6 {[%emt 0:00:00]} 3. Nc3 {[%emt 0:00:00]} Bg7 {[%emt 0:00:00]} 4. e3 {[%emt 0:00:13]} Nf6 {[%emt 0:01:42]} 5. h4 {[%emt 0:00:07]} h6 {[%emt 0:00:10]} 6. Bf4 {[%emt 0:00:29]} d6 {[%emt 0:00:58]} 7. Bc4 {[%emt 0:01:54]} e6 {[%emt 0:01:05]} 8. Qf3 {[%emt 0:03:47]} Qe7 {[%emt 0:01:31]} 9. O-O-O {[%emt 0:04:43]} Nc6 {[%emt 0:10:04]} 10. Bh2 {[%emt 0:16:20]} Bd7 {[%emt 0:02:15]} 11. Qg3 {[%emt 0:07:30]} Qf7 {[%emt 0:05:33]} 12. f3 {[%emt 0:06:29]} a6 {[%emt 0:11:03]} 13. Nge2 {[%emt 0:06:21]} g5 {[%emt 0:19:35]} 14. Kb1 {[%emt 0:05:21]} O-O-O {[%emt 0:10:14]} 15. e4 {[%emt 0:08:18]} fxe4 {[%emt 0:04:10]} 16. fxe4 {[%emt 0:00:43]} Nh5 {[%emt 0:04:43]} 17. Qe3 {[%emt 0:00:59]} Qe7 {[%emt 0:04:00]} 18. d5 {[%emt 0:01:51]} Nb8 {[%emt 0:01:43]} 19. e5 {[%emt 0:15:23]} dxe5 {[%emt 0:01:30]} 20. Bxe5 {[%emt 0:01:13]} Bxe5 {[%emt 0:07:54]} 21. Qxe5 {[%emt 0:02:05]} Qc5 {[%emt 0:00:09]} 22. hxg5 {[%emt 0:01:28]} hxg5 {[%emt 0:03:02]} 23. Bb3 {[%emt 0:00:47]} exd5 {[%emt 0:05:07]} 24. Qxg5 {[%emt 0:03:12]} Rdg8 {[%emt 0:01:06]} 25. Rxh5 {[%emt 0:01:37]} Rxg5 {[%emt 0:00:13]} 26. Rxh8+ {[%emt 0:00:05]} 1-0

[Event "12th Arad Open 2019"]
[Site "Arad"]
[Date "2019.07.30"]
[Round "8.16"]
[White "Nedelcu, Teodor-Cosmin"]
[Black "Bonte, Andrei-Mihai"]
[Result "0-1"]
[ECO "E45"]
[WhiteElo "1963"]
[BlackElo "2337"]
[Annotator "NA"]
[PlyCount "108"]
[EventDate "2019.07.24"]
[EventType "swiss"]
[EventCountry "ROU"]
[SourceTitle "playchess.com"]
[Source "ChessBase"]
[SourceQuality "1"]
[TimeControl "40/5400+30:900+30"]

1. d4 {[%emt 0:00:00]} Nf6 {[%emt 0:00:23]} 2. c4 {[%emt 0:00:00]} e6 {[%emt 0:00:15]} 3. Nc3 {[%emt 0:00:00]} Bb4 {[%emt 0:00:08]} 4. e3 {[%emt 0:00:00]} b6 {[%emt 0:00:25]} 5. Nge2 {[%emt 0:00:07]} Ba6 {[%emt 0:16:37]} 6. a3 {[%emt 0:00:15]} Bxc3+ {[%emt 0:00:06]} 7. Nxc3 {[%emt 0:00:03]} d5 {[%emt 0:00:07]} 8. Qa4+ {[%emt 0:01:01]} Qd7 {[%emt 0:00:44]} 9. Qxd7+ {[%emt 0:00:30]} Kxd7 {[%emt 0:00:33]} 10. cxd5 {[%emt 0:00:11]} exd5 {[%emt 0:00:15]} 11. Bxa6 {[%emt 0:00:36]} Nxa6 {[%emt 0:00:03]} 12. b4 {[%emt 0:00:41]} c6 {[%emt 0:01:17]} 13. Bb2 {[%emt 0:01:24]} Nc7 {[%emt 0:00:41]} 14. O-O-O {[%emt 0:00:37]} Rhe8 {[%emt 0:18:07]} 15. Rhe1 {[%emt 0:02:00]} Ne4 {[%emt 0:00:54]} 16. f3 {[%emt 0:01:17]} Nxc3 {[%emt 0:00:17]} 17. Bxc3 {[%emt 0:00:01]} Nb5 {[%emt 0:00:14]} 18. Bb2 {[%emt 0:00:24]} Nd6 {[%emt 0:03:51]} 19. Rd2 {[%emt 0:00:27]} f5 {[%emt 0:00:58]} 20. Rde2 {[%emt 0:02:31]} Re6 {[%emt 0:02:53]} 21. Kd2 {[%emt 0:00:09]} Rae8 {[%emt 0:00:20]} 22. Kd3 {[%emt 0:01:19]} g5 {[%emt 0:01:36]} 23. Bc1 {[%emt 0:00:38]} Rg8 {[%emt 0:03:33]} 24. h3 {[%emt 0:01:14]} h5 {[%emt 0:00:59]} 25. a4 {[%emt 0:00:54]} g4 {[%emt 0:01:24]} 26. hxg4 {[%emt 0:00:12]} hxg4 {[%emt 0:00:07]} 27. Bd2 {[%emt 0:01:05]} gxf3 {[%emt 0:00:39]} 28. gxf3 {[%emt 0:00:01]} Rg3 {[%emt 0:00:10]} 29. Rf2 {[%emt 0:00:46]} Rh6 {[%emt 0:04:59]} 30. a5 {[%emt 0:00:44]} Kc7 {[%emt 0:01:14]} 31. Rc1 {[%emt 0:02:51]} Kb7 {[%emt 0:00:25]} 32. Ke2 {[%emt 0:00:39]} Rhh3 {[%emt 0:00:59]} 33. axb6 {[%emt 0:02:28]} axb6 {[%emt 0:00:03]} 34. Rcf1 {[%emt 0:02:20]} Rg8 {[%emt 0:02:29]} 35. Ra1 {[%emt 0:00:31]} Rhh8 {[%emt 0:03:07]} 36. Bc3 {[%emt 0:01:57]} Ra8 {[%emt 0:00:49]} 37. Rg2 {[%emt 0:01:33]} Rxa1 {[%emt 0:00:58]} 38. Bxa1 {[%emt 0:00:32]} Nc4 {[%emt 0:06:17]} 39. Kd3 {[%emt 0:03:34]} Rh3 {[%emt 0:01:56]} 40. Ke2 {[%emt 0:00:00]} Ka6 {[%emt 0:00:00]} 41. Bc3 {[%emt 0:01:38]} Kb5 {[%emt 0:08:49]} 42. Rg5 {[%emt 0:03:04]} Rh2+ {[%emt 0:00:26]} 43. Kd3 {[%emt 0:00:27]} Ka4 {[%emt 0:02:46]} 44. b5 {[%emt 0:05:09]} cxb5 {[%emt 0:07:56]} 45. Rg1 {[%emt 0:00:33]} b4 {[%emt 0:00:59]} 46. Ra1+ {[%emt 0:00:02]} Na3 {[%emt 0:00:25]} 47. Bd2 {[%emt 0:00:28]} b3 {[%emt 0:02:05]} 48. Kc3 {[%emt 0:00:26]} b2 {[%emt 0:02:49]} 49. Kxb2 {[%emt 0:00:04]} Rxd2+ {[%emt 0:00:08]} 50. Kc3 {[%emt 0:00:04]} Rf2 {[%emt 0:00:10]} 51. f4 {[%emt 0:00:37]} b5 {[%emt 0:00:10]} 52. Rh1 {[%emt 0:00:14]} b4+ {[%emt 0:00:15]} 53. Kd3 {[%emt 0:00:03]} Nc4 {[%emt 0:00:17]} 54. Ra1+ {[%emt 0:00:29]} Kb5 {[%emt 0:00:09]} 0-1

[Event "12th Arad Open 2019"]
[Site "Arad"]
[Date "2019.07.30"]
[Round "8.17"]
[White "Ardeleanu, Alin"]
[Black "Mitran, Anthony Cristian"]
[Result "1/2-1/2"]
[ECO "C65"]
[WhiteElo "2323"]
[BlackElo "2089"]
[Annotator "NA"]
[PlyCount "24"]
[EventDate "2019.07.24"]
[EventType "swiss"]
[EventCountry "ROU"]
[SourceTitle "playchess.com"]
[Source "ChessBase"]
[SourceQuality "1"]
[TimeControl "40/5400+30:900+30"]

1. e4 {[%emt 0:00:00]} e5 {[%emt 0:03:43]} 2. Nf3 {[%emt 0:00:13]} Nc6 {[%emt 0:00:05]} 3. Bb5 {[%emt 0:03:10]} Nf6 {[%emt 0:00:30]} 4. d3 {[%emt 0:08:17]} Bc5 {[%emt 0:16:12]} 5. O-O {[%emt 0:02:25]} d6 {[%emt 0:01:03]} 6. c3 {[%emt 0:05:38]} O-O {[%emt 0:03:44]} 7. h3 {[%emt 0:03:39]} h6 {[%emt 0:04:18]} 8. d4 {[%emt 0:01:23]} exd4 {[%emt 0:00:50]} 9. cxd4 {[%emt 0:00:07]} Bb6 {[%emt 0:00:14]} 10. Nc3 {[%emt 0:00:15]} d5 {[%emt 0:02:24]} 11. exd5 {[%emt 0:10:59]} Nxd5 {[%emt 0:00:27]} 12. Na4 {[%emt 0:01:23]} Qf6 {[%emt 0:02:10]} 1/2-1/2

[Event "12th Arad Open 2019"]
[Site "Arad"]
[Date "2019.07.30"]
[Round "8.18"]
[White "Har-Even, Abir"]
[Black "Florescu, Codrut-Constantin"]
[Result "0-1"]
[ECO "B23"]
[WhiteElo "2083"]
[BlackElo "2312"]
[Annotator "NA"]
[PlyCount "70"]
[EventDate "2019.07.24"]
[EventType "swiss"]
[EventCountry "ROU"]
[SourceTitle "playchess.com"]
[Source "ChessBase"]
[SourceQuality "1"]
[TimeControl "40/5400+30:900+30"]

1. e4 {[%emt 0:00:00]} c5 {[%emt 0:00:00]} 2. Nc3 {[%emt 0:00:00]} e6 {[%emt 0:00:00]} 3. f4 {[%emt 0:00:03]} d5 {[%emt 0:00:00]} 4. Nf3 {[%emt 0:00:39]} dxe4 {[%emt 0:02:08]} 5. Nxe4 {[%emt 0:00:17]} Nf6 {[%emt 0:00:16]} 6. Nxf6+ {[%emt 0:00:23]} gxf6 {[%emt 0:00:06]} 7. d3 {[%emt 0:04:09]} Nc6 {[%emt 0:04:00]} 8. g3 {[%emt 0:02:38]} e5 {[%emt 0:09:20]} 9. Bg2 {[%emt 0:04:11]} Bg4 {[%emt 0:00:21]} 10. h3 {[%emt 0:07:10]} Be6 {[%emt 0:07:01]} 11. fxe5 {[%emt 0:05:23]} Qc7 {[%emt 0:00:19]} 12. Qe2 {[%emt 0:10:01]} Nxe5 {[%emt 0:00:13]} 13. Nxe5 {[%emt 0:09:28]} fxe5 {[%emt 0:00:10]} 14. Bg5 {[%emt 0:00:42]} Rg8 {[%emt 0:07:03]} 15. Bf6 {[%emt 0:01:41]} Rxg3 {[%emt 0:22:03]} 16. Bxe5 {[%emt 0:00:41]} Bd6 {[%emt 0:00:05]} 17. Bxg3 {[%emt 0:00:53]} Bxg3+ {[%emt 0:00:07]} 18. Kd1 {[%emt 0:00:50]} O-O-O {[%emt 0:00:38]} 19. c3 {[%emt 0:03:58]} h5 {[%emt 0:03:57]} 20. Kc2 {[%emt 0:05:15]} h4 {[%emt 0:00:04]} 21. Bf3 {[%emt 0:03:33]} Qd7 {[%emt 0:03:24]} 22. b3 {[%emt 0:18:26]} Kb8 {[%emt 0:04:03]} 23. Bg4 {[%emt 0:03:42]} f5 {[%emt 0:03:10]} 24. Bh5 {[%emt 0:00:50]} f4 {[%emt 0:01:16]} 25. Bg4 {[%emt 0:00:58]} Bxg4 {[%emt 0:00:06]} 26. hxg4 {[%emt 0:00:38]} Re8 {[%emt 0:00:06]} 27. Qg2 {[%emt 0:05:08]} Re3 {[%emt 0:02:30]} 28. Rad1 {[%emt 0:00:26]} f3 {[%emt 0:03:52]} 29. Qh3 {[%emt 0:01:17]} Qe7 {[%emt 0:01:22]} 30. Kb1 {[%emt 0:09:46]} a6 {[%emt 0:02:54]} 31. Rhf1 {[%emt 0:01:18]} Qe5 {[%emt 0:00:18]} 32. d4 {[%emt 0:00:50]} Qe4+ {[%emt 0:00:16]} 33. Kb2 {[%emt 0:00:05]} Re2+ {[%emt 0:00:18]} 34. Ka3 {[%emt 0:00:13]} Qc2 {[%emt 0:02:05]} 35. dxc5 {[%emt 0:00:08]} Qxc3 {[%emt 0:00:13]} 0-1

[Event "12th Arad Open 2019"]
[Site "Arad"]
[Date "2019.07.30"]
[Round "8.19"]
[White "Petrisor, Adrian-Marian"]
[Black "Albu, George"]
[Result "1-0"]
[ECO "E85"]
[WhiteElo "2422"]
[BlackElo "2014"]
[Annotator "NA"]
[PlyCount "73"]
[EventDate "2019.07.24"]
[EventType "swiss"]
[EventCountry "ROU"]
[SourceTitle "playchess.com"]
[Source "ChessBase"]
[SourceQuality "1"]
[TimeControl "40/5400+30:900+30"]

1. d4 {[%emt 0:00:00]} Nf6 {[%emt 0:00:10]} 2. c4 {[%emt 0:00:00]} g6 {[%emt 0:00:08]} 3. Nc3 {[%emt 0:00:00]} Bg7 {[%emt 0:00:09]} 4. e4 {[%emt 0:00:00]} d6 {[%emt 0:00:06]} 5. f3 {[%emt 0:00:00]} O-O {[%emt 0:00:07]} 6. Be3 {[%emt 0:00:02]} e5 {[%emt 0:04:57]} 7. Nge2 {[%emt 0:00:22]} exd4 {[%emt 0:00:41]} 8. Nxd4 {[%emt 0:00:06]} c6 {[%emt 0:00:06]} 9. Qd2 {[%emt 0:00:20]} Re8 {[%emt 0:00:11]} 10. O-O-O {[%emt 0:01:36]} Qe7 {[%emt 0:16:20]} 11. Bg5 {[%emt 0:05:32]} Nbd7 {[%emt 0:05:29]} 12. Nc2 {[%emt 0:03:54]} Bf8 {[%emt 0:01:12]} 13. h4 {[%emt 0:02:50]} a5 {[%emt 0:08:57]} 14. h5 {[%emt 0:01:23]} a4 {[%emt 0:03:43]} 15. hxg6 {[%emt 0:00:16]} fxg6 {[%emt 0:00:07]} 16. Bh6 {[%emt 0:07:00]} Rd8 {[%emt 0:01:57]} 17. Kb1 {[%emt 0:07:01]} Bxh6 {[%emt 0:01:59]} 18. Qxh6 {[%emt 0:01:45]} Ne5 {[%emt 0:00:09]} 19. Be2 {[%emt 0:06:48]} Be6 {[%emt 0:00:23]} 20. f4 {[%emt 0:09:39]} Neg4 {[%emt 0:38:33]} 21. Qh4 {[%emt 0:01:18]} Ra5 {[%emt 0:00:06]} 22. e5 {[%emt 0:04:05]} dxe5 {[%emt 0:01:06]} 23. Rxd8+ {[%emt 0:00:05]} Qxd8 {[%emt 0:00:06]} 24. Bxg4 {[%emt 0:00:13]} Bxg4 {[%emt 0:02:12]} 25. Ne4 {[%emt 0:00:05]} Kg7 {[%emt 0:01:34]} 26. fxe5 {[%emt 0:01:40]} Rxe5 {[%emt 0:00:17]} 27. Nxf6 {[%emt 0:00:04]} Qxf6 {[%emt 0:01:21]} 28. Qxg4 {[%emt 0:00:06]} h5 {[%emt 0:00:10]} 29. Qd7+ {[%emt 0:00:52]} Re7 {[%emt 0:00:07]} 30. Qd3 {[%emt 0:00:36]} Qf2 {[%emt 0:01:02]} 31. g3 {[%emt 0:01:25]} Re2 {[%emt 0:00:18]} 32. Rd1 {[%emt 0:01:19]} a3 {[%emt 0:00:25]} 33. Qc3+ {[%emt 0:00:15]} Kh6 {[%emt 0:00:18]} 34. bxa3 {[%emt 0:01:50]} Kg5 {[%emt 0:01:40]} 35. Qd3 {[%emt 0:03:24]} Qg2 {[%emt 0:01:02]} 36. Qd8+ {[%emt 0:01:22]} Kh6 {[%emt 0:00:47]} 37. Qf8+ {[%emt 0:00:06]} 1-0

[Event "12th Arad Open 2019"]
[Site "Arad"]
[Date "2019.07.30"]
[Round "8.20"]
[White "Markovic, Franjo-Josip"]
[Black "Martinovici, Ilie"]
[Result "0-1"]
[ECO "E17"]
[WhiteElo "2160"]
[BlackElo "2407"]
[Annotator "NA"]
[PlyCount "134"]
[EventDate "2019.07.24"]
[EventType "swiss"]
[EventCountry "ROU"]
[SourceTitle "playchess.com"]
[Source "ChessBase"]
[SourceQuality "1"]
[TimeControl "40/5400+30:900+30"]

1. d4 {[%emt 0:01:08]} Nf6 {[%emt 0:00:00]} 2. c4 {[%emt 0:00:14]} e6 {[%emt 0:00:00]} 3. Nf3 {[%emt 0:00:25]} b6 {[%emt 0:00:00]} 4. g3 {[%emt 0:00:49]} Bb7 {[%emt 0:00:00]} 5. Bg2 {[%emt 0:00:15]} Be7 {[%emt 0:00:00]} 6. O-O {[%emt 0:00:18]} O-O {[%emt 0:00:05]} 7. d5 {[%emt 0:01:10]} exd5 {[%emt 0:00:05]} 8. Nh4 {[%emt 0:01:11]} c6 {[%emt 0:00:05]} 9. cxd5 {[%emt 0:01:27]} Nxd5 {[%emt 0:00:07]} 10. Nf5 {[%emt 0:01:16]} Nc7 {[%emt 0:01:30]} 11. e4 {[%emt 0:05:33]} d5 {[%emt 0:00:21]} 12. Nc3 {[%emt 0:12:37]} Bf6 {[%emt 0:00:15]} 13. exd5 {[%emt 0:04:35]} Nxd5 {[%emt 0:11:31]} 14. Nxd5 {[%emt 0:01:14]} cxd5 {[%emt 0:00:09]} 15. Ne3 {[%emt 0:01:35]} Nc6 {[%emt 0:23:21]} 16. Nxd5 {[%emt 0:02:04]} Be5 {[%emt 0:00:59]} 17. Re1 {[%emt 0:28:53]} Re8 {[%emt 0:07:20]} 18. Bf4 {[%emt 0:17:44]} Bxb2 {[%emt 0:06:36]} 19. Rxe8+ {[%emt 0:01:55]} Qxe8 {[%emt 0:00:05]} 20. Nc7 {[%emt 0:00:41]} Qd8 {[%emt 0:00:43]} 21. Nxa8 {[%emt 0:03:09]} Bxa1 {[%emt 0:00:08]} 22. Qxd8+ {[%emt 0:00:11]} Nxd8 {[%emt 0:00:05]} 23. Bxb7 {[%emt 0:00:10]} Nxb7 {[%emt 0:00:03]} 24. Bb8 {[%emt 0:00:11]} a6 {[%emt 0:02:19]} 25. Ba7 {[%emt 0:03:59]} Kf8 {[%emt 0:04:54]} 26. Bxb6 {[%emt 0:02:53]} Ke7 {[%emt 0:00:17]} 27. Nc7 {[%emt 0:01:00]} a5 {[%emt 0:00:02]} 28. Nb5 {[%emt 0:01:56]} Ke6 {[%emt 0:00:27]} 29. Nd4+ {[%emt 0:00:52]} Kd5 {[%emt 0:00:13]} 30. Nb3 {[%emt 0:01:02]} Bc3 {[%emt 0:00:06]} 31. Kf1 {[%emt 0:00:39]} a4 {[%emt 0:01:37]} 32. Nc1 {[%emt 0:00:08]} Bd4 {[%emt 0:01:52]} 33. Bc7 {[%emt 0:01:08]} g5 {[%emt 0:03:02]} 34. Ke2 {[%emt 0:01:14]} f6 {[%emt 0:01:36]} 35. Nd3 {[%emt 0:00:52]} Kc6 {[%emt 0:00:38]} 36. Bb8 {[%emt 0:00:31]} Kd7 {[%emt 0:00:02]} 37. g4 {[%emt 0:00:40]} Ke6 {[%emt 0:00:21]} 38. Kd2 {[%emt 0:02:24]} Kd5 {[%emt 0:00:39]} 39. f3 {[%emt 0:00:27]} Na5 {[%emt 0:00:14]} 40. Kc2 {[%emt 0:00:00]} Nc6 {[%emt 0:00:00]} 41. Bg3 {[%emt 0:03:45]} Kc4 {[%emt 0:05:07]} 42. f4 {[%emt 0:05:50]} a3 {[%emt 0:01:08]} 43. fxg5 {[%emt 0:00:23]} fxg5 {[%emt 0:00:00]} 44. Bd6 {[%emt 0:01:26]} Bc3 {[%emt 0:00:04]} 45. Bc5 {[%emt 0:05:09]} Ba5 {[%emt 0:02:50]} 46. h3 {[%emt 0:02:19]} h6 {[%emt 0:02:54]} 47. Bf2 {[%emt 0:00:35]} Nd4+ {[%emt 0:00:06]} 48. Bxd4 {[%emt 0:00:05]} Kxd4 {[%emt 0:00:01]} 49. Nf2 {[%emt 0:00:54]} Ke3 {[%emt 0:00:10]} 50. Nd3 {[%emt 0:00:30]} Bc7 {[%emt 0:00:23]} 51. Nb4 {[%emt 0:00:32]} Kf3 {[%emt 0:00:38]} 52. Kd3 {[%emt 0:00:21]} Kg3 {[%emt 0:01:10]} 53. Ke4 {[%emt 0:00:21]} Kxh3 {[%emt 0:00:22]} 54. Kf5 {[%emt 0:00:47]} Kh4 {[%emt 0:00:53]} 55. Nc2 {[%emt 0:00:26]} Bd6 {[%emt 0:00:16]} 56. Ne3 {[%emt 0:00:29]} Bc5 {[%emt 0:00:18]} 57. Nd5 {[%emt 0:00:24]} Kg3 {[%emt 0:02:20]} 58. Nf6 {[%emt 0:00:31]} Kf3 {[%emt 0:00:13]} 59. Ne4 {[%emt 0:00:41]} Bb4 {[%emt 0:01:18]} 60. Nf6 {[%emt 0:00:27]} Bc3 {[%emt 0:00:54]} 61. Nd5 {[%emt 0:00:10]} Bb2 {[%emt 0:01:28]} 62. Nb6 {[%emt 0:00:37]} h5 {[%emt 0:01:31]} 63. gxh5 {[%emt 0:00:24]} g4 {[%emt 0:00:03]} 64. Nc4 {[%emt 0:00:51]} g3 {[%emt 0:00:13]} 65. Nd2+ {[%emt 0:00:27]} Ke2 {[%emt 0:00:10]} 66. Ne4 {[%emt 0:00:33]} g2 {[%emt 0:00:06]} 67. Ng3+ {[%emt 0:00:16]} Kf3 {[%emt 0:00:09]} 0-1

[Event "12th Arad Open 2019"]
[Site "Arad"]
[Date "2019.07.30"]
[Round "8.21"]
[White "Ahlander, Bjorn"]
[Black "Isfan, Ioan-Marius"]
[Result "1-0"]
[ECO "E32"]
[WhiteElo "2391"]
[BlackElo "2164"]
[Annotator "NA"]
[PlyCount "33"]
[EventDate "2019.07.24"]
[EventType "swiss"]
[EventCountry "ROU"]
[SourceTitle "playchess.com"]
[Source "ChessBase"]
[SourceQuality "1"]
[TimeControl "40/5400+30:900+30"]

1. d4 {[%emt 0:00:00]} Nf6 {[%emt 0:00:00]} 2. c4 {[%emt 0:00:00]} e6 {[%emt 0:00:00]} 3. Nc3 {[%emt 0:00:00]} Bb4 {[%emt 0:00:00]} 4. Qc2 {[%emt 0:00:00]} b6 {[%emt 0:00:02]} 5. e4 {[%emt 0:01:08]} O-O {[%emt 0:01:09]} 6. e5 {[%emt 0:01:43]} Ne8 {[%emt 0:00:26]} 7. Bd3 {[%emt 0:12:42]} d5 {[%emt 0:13:01]} 8. Bxh7+ {[%emt 0:12:23]} Kh8 {[%emt 0:00:01]} 9. Nf3 {[%emt 0:01:01]} c5 {[%emt 0:16:10]} 10. a3 {[%emt 0:08:53]} Bxc3+ {[%emt 0:09:21]} 11. bxc3 {[%emt 0:01:29]} g6 {[%emt 0:00:08]} 12. Qd2 {[%emt 0:02:30]} Ng7 {[%emt 0:02:00]} 13. Bxg6 {[%emt 0:00:39]} fxg6 {[%emt 0:00:12]} 14. Qh6+ {[%emt 0:00:15]} Kg8 {[%emt 0:00:02]} 15. Ng5 {[%emt 0:00:16]} Rf7 {[%emt 0:00:34]} 16. Qh7+ {[%emt 0:01:11]} Kf8 {[%emt 0:00:04]} 17. Qh8+ {[%emt 0:01:10]} 1-0